[Event "Djerba Festival Blitz 2025"]
[Site "Djerba"]
[Date "2025.02.21"]
[Round "1.16"]
[White "Alouani, Ahmed"]
[Black "Pichon, Ewen"]
[Result "0-1"]
[ECO "D02"]
[WhiteElo "1617"]
[BlackElo "2351"]
[PlyCount "58"]
[EventDate "2025.02.15"]
[EventType "swiss"]
[EventCountry "TUN"]
[TimeControl "180+3"]

1. Nf3 {[%emt 0:00:03]} d5 {[%emt 0:00:03]} 2. d4 {[%emt 0:00:02]} Nf6 {[%emt 0:00:02]} 3. Bf4 {[%emt 0:00:02]} c5 {[%emt 0:00:05]} 4. e3 {[%emt 0:00:04]} Nc6 {[%emt 0:00:02]} 5. c3 {[%emt 0:00:03]} Qb6 {[%emt 0:00:02]} 6. b3 {[%emt 0:00:37]} cxd4 {[%emt 0:00:07]} 7. cxd4 {[%emt 0:00:09]} Bg4 {[%emt 0:00:04]} 8. Nbd2 {[%emt 0:00:28]} g6 {[%emt 0:00:02]} 9. Be2 {[%emt 0:00:04]} Bg7 {[%emt 0:00:02]} 10. O-O {[%emt 0:00:03]} O-O {[%emt 0:00:03]} 11. h3 {[%emt 0:00:03]} Bf5 {[%emt 0:00:04]} 12. Nh4 {[%emt 0:00:09]} Bd7 {[%emt 0:00:02]} 13. Nhf3 {[%emt 0:00:04]} Rac8 {[%emt 0:00:02]} 14. a3 {[%emt 0:00:08]} Rfd8 {[%emt 0:00:23]} 15. Ne5 {[%emt 0:00:02]} Be8 {[%emt 0:00:03]} 16. Rc1 {[%emt 0:00:03]} Nd7 {[%emt 0:00:14]} 17. Nxc6 {[%emt 0:00:07]} bxc6 {[%emt 0:00:06]} 18. b4 {[%emt 0:00:03]} a5 {[%emt 0:00:05]} 19. Rb1 {[%emt 0:00:15]} e5 {[%emt 0:00:02]} 20. dxe5 {[%emt 0:00:04]} Nxe5 {[%emt 0:00:02]} 21. Nf3 {[%emt 0:00:14]} Nxf3+ {[%emt 0:00:06]} 22. Bxf3 {[%emt 0:00:03]} Bd7 {[%emt 0:00:02]} 23. b5 {[%emt 0:00:10]} cxb5 {[%emt 0:00:21]} 24. Qxd5 {[%emt 0:00:26]} b4 {[%emt 0:00:20]} 25. axb4 {[%emt 0:00:08]} axb4 {[%emt 0:00:05]} 26. Qb3 {[%emt 0:00:12]} Bc3 {[%emt 0:00:06]} 27. Rfc1 {[%emt 0:00:05]} Be6 {[%emt 0:00:05]} 28. Qa4 {[%emt 0:00:26]} Qc5 {[%emt 0:00:02]} 29. Qa7 {[%emt 0:00:08]} Qxa7 {[%emt 0:00:02]} 0-1

[Event "Djerba Festival Blitz 2025"]
[Site "Djerba"]
[Date "2025.02.21"]
[Round "1.17"]
[White "Filali, Razzouki Marouane"]
[Black "Benzarti, Thabet"]
[Result "1-0"]
[ECO "B13"]
[WhiteElo "2234"]
[BlackElo "1664"]
[PlyCount "84"]
[EventDate "2025.02.15"]
[EventType "swiss"]
[EventCountry "TUN"]
[TimeControl "180+3"]

1. e4 {[%emt 0:00:03]} c6 {[%emt 0:00:04]} 2. d4 {[%emt 0:00:03]} d5 {[%emt 0:00:01]} 3. exd5 {[%emt 0:00:03]} cxd5 {[%emt 0:00:02]} 4. c4 {[%emt 0:00:02]} Nf6 {[%emt 0:00:10]} 5. Nf3 {[%emt 0:00:02]} Nc6 {[%emt 0:00:03]} 6. Nc3 {[%emt 0:00:03]} Bg4 {[%emt 0:00:04]} 7. Be2 {[%emt 0:00:06]} e6 {[%emt 0:00:03]} 8. O-O {[%emt 0:00:04]} Be7 {[%emt 0:00:03]} 9. a3 {[%emt 0:00:04]} O-O {[%emt 0:00:03]} 10. c5 {[%emt 0:00:05]} Qd7 {[%emt 0:00:15]} 11. b4 {[%emt 0:00:01]} a6 {[%emt 0:00:03]} 12. Rb1 {[%emt 0:00:03]} Ne4 {[%emt 0:00:21]} 13. Bb2 {[%emt 0:00:16]} f5 {[%emt 0:00:11]} 14. h3 {[%emt 0:00:18]} Bh5 {[%emt 0:00:24]} 15. Na4 {[%emt 0:00:07]} Rab8 {[%emt 0:00:08]} 16. Ne5 {[%emt 0:00:09]} Nxe5 {[%emt 0:00:05]} 17. Bxh5 {[%emt 0:00:07]} Nc4 {[%emt 0:00:03]} 18. Be2 {[%emt 0:00:18]} Ncd2 {[%emt 0:00:03]} 19. Nb6 {[%emt 0:00:13]} Qd8 {[%emt 0:00:09]} 20. a4 {[%emt 0:00:14]} Nxf1 {[%emt 0:00:06]} 21. Bxf1 {[%emt 0:00:03]} f4 {[%emt 0:00:11]} 22. f3 {[%emt 0:00:03]} Ng3 {[%emt 0:00:04]} 23. Bd3 {[%emt 0:00:02]} Bf6 {[%emt 0:00:06]} 24. b5 {[%emt 0:00:03]} axb5 {[%emt 0:00:05]} 25. axb5 {[%emt 0:00:03]} Qe7 {[%emt 0:00:11]} 26. Qd2 {[%emt 0:00:13]} e5 {[%emt 0:00:03]} 27. Nxd5 {[%emt 0:00:05]} Qd7 {[%emt 0:00:07]} 28. dxe5 {[%emt 0:00:06]} Bxe5 {[%emt 0:00:08]} 29. Bxe5 {[%emt 0:00:04]} Qxd5 {[%emt 0:00:03]} 30. Bxh7+ {[%emt 0:00:03]} Kxh7 {[%emt 0:00:06]} 31. Qxd5 {[%emt 0:00:03]} Rfd8 {[%emt 0:00:09]} 32. Bd6 {[%emt 0:00:03]} Rbc8 {[%emt 0:00:07]} 33. Re1 {[%emt 0:00:05]} Re8 {[%emt 0:00:10]} 34. Rxe8 {[%emt 0:00:05]} Rxe8 {[%emt 0:00:03]} 35. Bxf4 {[%emt 0:00:05]} Ne2+ {[%emt 0:00:07]} 36. Kf2 {[%emt 0:00:06]} Nxf4 {[%emt 0:00:03]} 37. Qf5+ {[%emt 0:00:03]} Ng6 {[%emt 0:00:03]} 38. Qh5+ {[%emt 0:00:02]} Kg8 {[%emt 0:00:03]} 39. Qxg6 {[%emt 0:00:02]} Rf8 {[%emt 0:00:05]} 40. c6 {[%emt 0:00:04]} bxc6 {[%emt 0:00:07]} 41. bxc6 {[%emt 0:00:03]} Rf6 {[%emt 0:00:03]} 42. Qxf6 {[%emt 0:00:02]} gxf6 {[%emt 0:00:03]} 1-0

[Event "Djerba Festival Blitz 2025"]
[Site "Djerba"]
[Date "2025.02.21"]
[Round "1.18"]
[White "El Gazzar, Ahmed"]
[Black "Rene, Benoit"]
[Result "0-1"]
[ECO "B21"]
[WhiteElo "1667"]
[BlackElo "2108"]
[PlyCount "45"]
[EventDate "2025.02.15"]
[EventType "swiss"]
[EventCountry "TUN"]
[TimeControl "180+3"]

1. e4 {[%emt 0:00:04]} c5 {[%emt 0:00:03]} 2. d4 {[%emt 0:00:03]} cxd4 {[%emt 0:00:04]} 3. c3 {[%emt 0:00:02]} dxc3 {[%emt 0:00:07]} 4. Nxc3 {[%emt 0:00:02]} Nc6 {[%emt 0:00:03]} 5. Nf3 {[%emt 0:00:02]} e6 {[%emt 0:00:02]} 6. Be2 {[%emt 0:00:10]} a6 {[%emt 0:00:03]} 7. O-O {[%emt 0:00:15]} d6 {[%emt 0:00:04]} 8. Bf4 {[%emt 0:00:14]} Be7 {[%emt 0:00:07]} 9. Qb3 {[%emt 0:00:26]} Nf6 {[%emt 0:00:52]} 10. Rfd1 {[%emt 0:00:05]} Qc7 {[%emt 0:00:31]} 11. Rac1 {[%emt 0:00:12]} O-O {[%emt 0:00:10]} 12. e5 {[%emt 0:00:14]} dxe5 {[%emt 0:00:04]} 13. Bxe5 {[%emt 0:00:50]} Nxe5 {[%emt 0:00:05]} 14. Nd5 {[%emt 0:00:12]} Nxf3+ {[%emt 0:00:04]} 15. Bxf3 {[%emt 0:00:10]} Nxd5 {[%emt 0:00:16]} 16. Rxc7 {[%emt 0:00:03]} Nxc7 {[%emt 0:00:03]} 17. Bxb7 {[%emt 0:00:09]} Rb8 {[%emt 0:00:04]} 18. Qg3 {[%emt 0:00:26]} Rxb7 {[%emt 0:00:03]} 19. h4 {[%emt 0:00:04]} Nd5 {[%emt 0:00:04]} 20. h5 {[%emt 0:00:07]} h6 {[%emt 0:00:03]} 21. Qf3 {[%emt 0:00:09]} Rxb2 {[%emt 0:00:17]} 22. g4 {[%emt 0:00:05]} Bc5 {[%emt 0:00:20]} 23. Kh1 {[%emt 0:00:05]} 0-1

[Event "Djerba Festival Blitz 2025"]
[Site "Djerba"]
[Date "2025.02.21"]
[Round "1.19"]
[White "Boulrens, Ala Eddine"]
[Black "Hinard, Jeremy"]
[Result "1-0"]
[ECO "B14"]
[WhiteElo "2121"]
[BlackElo "1609"]
[PlyCount "71"]
[EventDate "2025.02.15"]
[EventType "swiss"]
[EventCountry "TUN"]
[TimeControl "180+3"]

1. e4 {[%emt 0:00:04]} c6 {[%emt 0:00:03]} 2. d4 {[%emt 0:00:02]} d5 {[%emt 0:00:01]} 3. exd5 {[%emt 0:00:02]} cxd5 {[%emt 0:00:03]} 4. c4 {[%emt 0:00:02]} Nf6 {[%emt 0:00:03]} 5. Nc3 {[%emt 0:00:02]} e6 {[%emt 0:00:02]} 6. Nf3 {[%emt 0:00:02]} Bb4 {[%emt 0:00:03]} 7. Qb3 {[%emt 0:00:06]} Bxc3+ {[%emt 0:00:07]} 8. bxc3 {[%emt 0:00:02]} O-O {[%emt 0:00:03]} 9. c5 {[%emt 0:00:06]} Bd7 {[%emt 0:00:06]} 10. Bf4 {[%emt 0:00:04]} Bc6 {[%emt 0:00:26]} 11. Bd3 {[%emt 0:00:03]} a5 {[%emt 0:00:07]} 12. O-O {[%emt 0:00:08]} Na6 {[%emt 0:00:02]} 13. Ne5 {[%emt 0:00:08]} Re8 {[%emt 0:00:08]} 14. h3 {[%emt 0:00:03]} Nd7 {[%emt 0:00:25]} 15. Qc2 {[%emt 0:00:04]} Nxe5 {[%emt 0:00:03]} 16. Bxh7+ {[%emt 0:00:13]} Kh8 {[%emt 0:00:05]} 17. Bxe5 {[%emt 0:00:02]} f5 {[%emt 0:00:10]} 18. Bg6 {[%emt 0:00:03]} Rf8 {[%emt 0:00:06]} 19. Qe2 {[%emt 0:00:07]} Qg5 {[%emt 0:00:04]} 20. Bh5 {[%emt 0:00:17]} Be8 {[%emt 0:00:06]} 21. Bxe8 {[%emt 0:00:03]} Raxe8 {[%emt 0:00:03]} 22. f4 {[%emt 0:00:02]} Qe7 {[%emt 0:00:06]} 23. Qh5+ {[%emt 0:00:03]} Kg8 {[%emt 0:00:03]} 24. Rab1 {[%emt 0:00:02]} Qf7 {[%emt 0:00:15]} 25. Qg5 {[%emt 0:00:05]} Qe7 {[%emt 0:00:03]} 26. Qxe7 {[%emt 0:00:07]} Rxe7 {[%emt 0:00:02]} 27. Bd6 {[%emt 0:00:01]} Rfe8 {[%emt 0:00:04]} 28. Bxe7 {[%emt 0:00:03]} Rxe7 {[%emt 0:00:02]} 29. Rfe1 {[%emt 0:00:03]} Nc7 {[%emt 0:00:02]} 30. Rxb7 {[%emt 0:00:02]} Kf8 {[%emt 0:00:03]} 31. Ra7 {[%emt 0:00:09]} a4 {[%emt 0:00:05]} 32. Rb1 {[%emt 0:00:03]} g5 {[%emt 0:00:27]} 33. Rbb7 {[%emt 0:00:04]} gxf4 {[%emt 0:00:17]} 34. Rxc7 {[%emt 0:00:02]} Rxc7 {[%emt 0:00:02]} 35. Rxc7 {[%emt 0:00:03]} Ke8 {[%emt 0:00:10]} 36. h4 {[%emt 0:00:03]} 1-0

[Event "Djerba Festival Blitz 2025"]
[Site "Djerba"]
[Date "2025.02.21"]
[Round "1.20"]
[White "Chaudesaygues, Hugo"]
[Black "Papaux, Steve"]
[Result "0-1"]
[ECO "C44"]
[WhiteElo "1624"]
[BlackElo "2204"]
[PlyCount "84"]
[EventDate "2025.02.15"]
[EventType "swiss"]
[EventCountry "TUN"]
[TimeControl "180+3"]

1. e4 {[%emt 0:00:03]} e5 {[%emt 0:00:04]} 2. Nf3 {[%emt 0:00:02]} Nc6 {[%emt 0:00:03]} 3. d4 {[%emt 0:00:02]} exd4 {[%emt 0:00:02]} 4. Bc4 {[%emt 0:00:02]} Bb4+ {[%emt 0:00:05]} 5. c3 {[%emt 0:00:02]} dxc3 {[%emt 0:00:02]} 6. bxc3 {[%emt 0:00:03]} Ba5 {[%emt 0:00:03]} 7. O-O {[%emt 0:00:08]} Nf6 {[%emt 0:00:03]} 8. Re1 {[%emt 0:00:04]} O-O {[%emt 0:00:17]} 9. Bb2 {[%emt 0:00:05]} Bb6 {[%emt 0:00:07]} 10. e5 {[%emt 0:00:08]} d5 {[%emt 0:00:02]} 11. exf6 {[%emt 0:00:21]} dxc4 {[%emt 0:00:02]} 12. fxg7 {[%emt 0:00:07]} Re8 {[%emt 0:00:10]} 13. Qxd8 {[%emt 0:00:07]} Rxd8 {[%emt 0:00:03]} 14. Na3 {[%emt 0:00:06]} Be6 {[%emt 0:00:04]} 15. Rad1 {[%emt 0:00:11]} Rd3 {[%emt 0:00:21]} 16. Rxd3 {[%emt 0:00:19]} cxd3 {[%emt 0:00:03]} 17. Rd1 {[%emt 0:00:03]} Rd8 {[%emt 0:00:05]} 18. c4 {[%emt 0:00:08]} Na5 {[%emt 0:00:28]} 19. g3 {[%emt 0:00:08]} Nxc4 {[%emt 0:00:09]} 20. Nxc4 {[%emt 0:00:08]} Bxc4 {[%emt 0:00:03]} 21. Ne5 {[%emt 0:00:10]} Bxa2 {[%emt 0:00:05]} 22. Rxd3 {[%emt 0:00:07]} Rxd3 {[%emt 0:00:04]} 23. Nxd3 {[%emt 0:00:03]} c6 {[%emt 0:00:43]} 24. h4 {[%emt 0:00:14]} Bd8 {[%emt 0:00:30]} 25. Nb4 {[%emt 0:00:07]} Be6 {[%emt 0:00:06]} 26. Nd3 {[%emt 0:00:06]} f6 {[%emt 0:00:05]} 27. Nf4 {[%emt 0:00:05]} Bf7 {[%emt 0:00:02]} 28. Kg2 {[%emt 0:00:12]} Kxg7 {[%emt 0:00:02]} 29. g4 {[%emt 0:00:03]} Kf8 {[%emt 0:00:03]} 30. h5 {[%emt 0:00:10]} a5 {[%emt 0:00:11]} 31. Kg3 {[%emt 0:00:02]} b5 {[%emt 0:00:06]} 32. Nd3 {[%emt 0:00:02]} Be7 {[%emt 0:00:05]} 33. Kf4 {[%emt 0:00:06]} Be6 {[%emt 0:00:07]} 34. f3 {[%emt 0:00:14]} c5 {[%emt 0:00:02]} 35. Ke4 {[%emt 0:00:16]} c4 {[%emt 0:00:05]} 36. Nf4 {[%emt 0:00:02]} Kf7 {[%emt 0:00:03]} 37. Ne2 {[%emt 0:00:17]} b4 {[%emt 0:00:02]} 38. Nd4 {[%emt 0:00:04]} c3 {[%emt 0:00:03]} 39. Bc1 {[%emt 0:00:04]} a4 {[%emt 0:00:05]} 40. Kd3 {[%emt 0:00:08]} a3 {[%emt 0:00:04]} 41. Nxe6 {[%emt 0:00:03]} Kxe6 {[%emt 0:00:03]} 42. Kc4 {[%emt 0:00:02]} a2 {[%emt 0:00:04]} 0-1

[Event "Djerba Festival Blitz 2025"]
[Site "Djerba"]
[Date "2025.02.21"]
[Round "1.21"]
[White "Kakavand, Ramtin"]
[Black "Soudani, Hassan"]
[Result "1-0"]
[ECO "B51"]
[WhiteElo "2106"]
[BlackElo "1598"]
[PlyCount "79"]
[EventDate "2025.02.15"]
[EventType "swiss"]
[EventCountry "TUN"]
[TimeControl "180+3"]

1. e4 {[%emt 0:00:04]} c5 {[%emt 0:00:03]} 2. Nf3 {[%emt 0:00:02]} Nc6 {[%emt 0:00:04]} 3. Bb5 {[%emt 0:00:02]} d6 {[%emt 0:00:03]} 4. O-O {[%emt 0:00:04]} e5 {[%emt 0:00:03]} 5. Re1 {[%emt 0:00:02]} Bg4 {[%emt 0:00:05]} 6. c3 {[%emt 0:00:02]} g6 {[%emt 0:00:03]} 7. h3 {[%emt 0:00:03]} Be6 {[%emt 0:00:04]} 8. d4 {[%emt 0:00:02]} cxd4 {[%emt 0:00:03]} 9. cxd4 {[%emt 0:00:02]} exd4 {[%emt 0:00:06]} 10. Nxd4 {[%emt 0:00:02]} Nge7 {[%emt 0:00:04]} 11. Bg5 {[%emt 0:00:07]} Qc7 {[%emt 0:00:24]} 12. Bf6 {[%emt 0:00:26]} Rg8 {[%emt 0:00:13]} 13. Nc3 {[%emt 0:00:07]} O-O-O {[%emt 0:00:06]} 14. Nd5 {[%emt 0:00:20]} Bxd5 {[%emt 0:00:17]} 15. exd5 {[%emt 0:00:03]} Nxd5 16. Bxd8 {[%emt 0:00:03]} Kxd8 {[%emt 0:00:21]} 17. Nxc6+ {[%emt 0:00:06]} bxc6 {[%emt 0:00:03]} 18. Qxd5 {[%emt 0:00:04]} Bg7 {[%emt 0:00:33]} 19. Qxc6 {[%emt 0:00:11]} Qxc6 {[%emt 0:00:04]} 20. Bxc6 {[%emt 0:00:02]} Bd4 {[%emt 0:00:08]} 21. Rad1 {[%emt 0:00:04]} Bc5 {[%emt 0:00:11]} 22. Bd5 {[%emt 0:00:05]} Rf8 {[%emt 0:00:12]} 23. b4 {[%emt 0:00:04]} Bxb4 {[%emt 0:00:08]} 24. Re4 {[%emt 0:00:02]} a5 {[%emt 0:00:05]} 25. Rc1 {[%emt 0:00:06]} f5 {[%emt 0:00:08]} 26. Rec4 {[%emt 0:00:03]} Kd7 {[%emt 0:00:12]} 27. Rc7+ {[%emt 0:00:03]} Kd8 {[%emt 0:00:08]} 28. Rc8+ {[%emt 0:00:02]} Ke7 {[%emt 0:00:02]} 29. R1c7+ {[%emt 0:00:03]} Kf6 {[%emt 0:00:02]} 30. Rxf8+ {[%emt 0:00:03]} Ke5 {[%emt 0:00:01]} 31. Bb3 {[%emt 0:00:04]} d5 {[%emt 0:00:15]} 32. Re8+ {[%emt 0:00:03]} Kd4 {[%emt 0:00:02]} 33. Rd7 {[%emt 0:00:03]} Kc3 {[%emt 0:00:06]} 34. Rxd5 {[%emt 0:00:03]} Ba3 {[%emt 0:00:04]} 35. Re3+ {[%emt 0:00:03]} Kb2 {[%emt 0:00:03]} 36. Rd2+ {[%emt 0:00:02]} Kc1 {[%emt 0:00:04]} 37. Rc2+ {[%emt 0:00:02]} Kd1 {[%emt 0:00:05]} 38. Kf1 {[%emt 0:00:02]} Bb4 {[%emt 0:00:03]} 39. Ree2 {[%emt 0:00:03]} a4 {[%emt 0:00:03]} 40. Rc3+ {[%emt 0:00:03]} 1-0

[Event "Djerba Festival Blitz 2025"]
[Site "Djerba"]
[Date "2025.02.21"]
[Round "1.22"]
[White "Raymond, Andre"]
[Black "Rekik Ismail"]
[Result "0-1"]
[ECO "B08"]
[WhiteElo "1610"]
[BlackElo "2006"]
[PlyCount "59"]
[EventDate "2025.02.15"]
[EventType "swiss"]
[EventCountry "TUN"]
[TimeControl "180+3"]

1. e4 {[%emt 0:00:06]} d6 {[%emt 0:00:03]} 2. d4 {[%emt 0:00:03]} Nf6 {[%emt 0:00:02]} 3. Nc3 {[%emt 0:00:03]} g6 {[%emt 0:00:01]} 4. Nf3 {[%emt 0:00:03]} Bg7 {[%emt 0:00:02]} 5. Bd3 {[%emt 0:00:06]} O-O {[%emt 0:00:03]} 6. O-O {[%emt 0:00:02]} c6 {[%emt 0:00:02]} 7. e5 {[%emt 0:00:03]} dxe5 {[%emt 0:00:03]} 8. dxe5 {[%emt 0:00:06]} Nd5 {[%emt 0:00:01]} 9. Nxd5 {[%emt 0:00:09]} cxd5 {[%emt 0:00:03]} 10. Bf4 {[%emt 0:00:15]} Nc6 {[%emt 0:00:02]} 11. Re1 {[%emt 0:00:03]} Bg4 {[%emt 0:00:12]} 12. h3 {[%emt 0:00:06]} Bd7 {[%emt 0:00:11]} 13. c3 {[%emt 0:00:10]} Rc8 {[%emt 0:00:02]} 14. Qb3 {[%emt 0:00:11]} e6 {[%emt 0:00:07]} 15. Bg5 {[%emt 0:00:23]} Qc7 {[%emt 0:00:05]} 16. Be3 {[%emt 0:00:16]} Nxe5 {[%emt 0:00:05]} 17. Nxe5 {[%emt 0:00:04]} Bxe5 {[%emt 0:00:03]} 18. Bxa7 {[%emt 0:00:08]} b5 {[%emt 0:00:09]} 19. Bd4 {[%emt 0:00:06]} Bh2+ {[%emt 0:00:08]} 20. Kh1 {[%emt 0:00:03]} e5 {[%emt 0:00:03]} 21. Be3 {[%emt 0:00:22]} e4 {[%emt 0:00:04]} 22. Bxb5 {[%emt 0:00:10]} Rb8 {[%emt 0:00:07]} 23. a4 {[%emt 0:00:02]} Be6 {[%emt 0:00:05]} 24. Rad1 {[%emt 0:00:29]} d4 {[%emt 0:00:04]} 25. Qc2 {[%emt 0:00:20]} dxe3 {[%emt 0:00:03]} 26. Rxe3 {[%emt 0:00:02]} Bf4 {[%emt 0:00:11]} 27. Re2 {[%emt 0:00:17]} Rfd8 {[%emt 0:00:04]} 28. g3 {[%emt 0:00:13]} Rxd1+ {[%emt 0:00:05]} 29. Qxd1 {[%emt 0:00:02]} Rd8 {[%emt 0:00:04]} 30. Qc2 {[%emt 0:00:10]} 0-1

[Event "Djerba Festival Blitz 2025"]
[Site "Djerba"]
[Date "2025.02.21"]
[Round "1.23"]
[White "Gemelli, Romain"]
[Black "Mallah, Abderrahmane"]
[Result "1-0"]
[ECO "D30"]
[WhiteElo "2203"]
[BlackElo "1556"]
[PlyCount "39"]
[EventDate "2025.02.15"]
[EventType "swiss"]
[EventCountry "TUN"]
[TimeControl "180+3"]

1. d4 {[%emt 0:00:06]} Nf6 {[%emt 0:00:04]} 2. c4 {[%emt 0:00:03]} e6 {[%emt 0:00:03]} 3. Nf3 {[%emt 0:00:03]} d5 {[%emt 0:00:03]} 4. Bg5 {[%emt 0:00:03]} Be7 {[%emt 0:00:05]} 5. e3 {[%emt 0:00:02]} O-O {[%emt 0:00:03]} 6. Qc2 {[%emt 0:00:03]} h6 {[%emt 0:00:05]} 7. Bxf6 {[%emt 0:00:03]} Bxf6 {[%emt 0:00:03]} 8. h4 {[%emt 0:00:03]} Re8 {[%emt 0:00:42]} 9. g4 {[%emt 0:00:02]} g6 {[%emt 0:00:55]} 10. g5 {[%emt 0:00:03]} hxg5 {[%emt 0:00:28]} 11. hxg5 {[%emt 0:00:02]} Bg7 {[%emt 0:00:02]} 12. Nc3 {[%emt 0:00:09]} c6 {[%emt 0:00:07]} 13. O-O-O {[%emt 0:00:08]} Nd7 {[%emt 0:00:27]} 14. e4 {[%emt 0:00:19]} dxe4 {[%emt 0:00:17]} 15. Nxe4 {[%emt 0:00:03]} Qe7 {[%emt 0:00:07]} 16. c5 {[%emt 0:00:34]} e5 {[%emt 0:00:07]} 17. Bc4 {[%emt 0:00:13]} Rf8 {[%emt 0:00:05]} 18. Nd6 {[%emt 0:00:29]} exd4 {[%emt 0:00:10]} 19. Qxg6 {[%emt 0:00:05]} Ne5 {[%emt 0:00:03]} 20. Qh7# {[%emt 0:00:03]} 1-0

[Event "Djerba Festival Blitz 2025"]
[Site "Djerba"]
[Date "2025.02.21"]
[Round "1.24"]
[White "Chartier, Romain"]
[Black "Nassr, Lina"]
[Result "0-1"]
[ECO "D02"]
[WhiteElo "1581"]
[BlackElo "1934"]
[PlyCount "74"]
[EventDate "2025.02.15"]
[EventType "swiss"]
[EventCountry "TUN"]
[TimeControl "180+3"]

1. d4 {[%emt 0:00:04]} d5 {[%emt 0:00:02]} 2. Bf4 {[%emt 0:00:02]} Nf6 {[%emt 0:00:03]} 3. e3 {[%emt 0:00:03]} e6 {[%emt 0:00:02]} 4. Nf3 {[%emt 0:00:04]} Bd6 {[%emt 0:00:03]} 5. Bxd6 {[%emt 0:00:03]} Qxd6 {[%emt 0:00:06]} 6. Bd3 {[%emt 0:00:03]} O-O {[%emt 0:00:04]} 7. O-O {[%emt 0:00:03]} c5 {[%emt 0:00:01]} 8. c3 {[%emt 0:00:02]} Nc6 {[%emt 0:00:03]} 9. Nbd2 {[%emt 0:00:05]} e5 {[%emt 0:00:03]} 10. dxe5 {[%emt 0:00:08]} Nxe5 {[%emt 0:00:02]} 11. Nxe5 {[%emt 0:00:04]} Qxe5 {[%emt 0:00:02]} 12. Nf3 {[%emt 0:00:09]} Qe7 {[%emt 0:00:04]} 13. Re1 {[%emt 0:00:06]} Bg4 {[%emt 0:00:04]} 14. h3 {[%emt 0:00:06]} Bh5 {[%emt 0:00:03]} 15. Be2 {[%emt 0:00:06]} Rad8 {[%emt 0:00:03]} 16. Qb3 {[%emt 0:00:03]} Rfe8 {[%emt 0:00:09]} 17. Rad1 {[%emt 0:00:03]} Bg6 {[%emt 0:00:13]} 18. c4 {[%emt 0:00:05]} Be4 {[%emt 0:00:19]} 19. cxd5 {[%emt 0:00:14]} Bxd5 {[%emt 0:00:05]} 20. Qc3 {[%emt 0:00:10]} Ne4 {[%emt 0:00:05]} 21. Qc2 {[%emt 0:00:16]} h6 {[%emt 0:00:23]} 22. b3 {[%emt 0:00:17]} a6 {[%emt 0:00:05]} 23. Nd2 {[%emt 0:00:16]} Nxd2 {[%emt 0:00:32]} 24. Rxd2 {[%emt 0:00:06]} Qg5 {[%emt 0:00:13]} 25. Rxd5 {[%emt 0:00:28]} Qxd5 {[%emt 0:00:07]} 26. Rd1 {[%emt 0:00:03]} Qe5 {[%emt 0:00:09]} 27. Bf3 {[%emt 0:00:08]} Qc7 {[%emt 0:00:08]} 28. Rc1 {[%emt 0:00:10]} b6 {[%emt 0:00:09]} 29. a4 {[%emt 0:00:08]} Qd6 {[%emt 0:00:23]} 30. Qc4 {[%emt 0:00:18]} Qd3 {[%emt 0:00:12]} 31. Bc6 {[%emt 0:00:15]} Qxc4 {[%emt 0:00:04]} 32. Rxc4 {[%emt 0:00:03]} Rd1+ {[%emt 0:00:04]} 33. Kh2 {[%emt 0:00:02]} Red8 {[%emt 0:00:02]} 34. Rf4 {[%emt 0:00:13]} R1d3 {[%emt 0:00:07]} 35. Be4 {[%emt 0:00:06]} Rxb3 {[%emt 0:00:03]} 36. Kg3 {[%emt 0:00:11]} Rb4 {[%emt 0:00:02]} 37. Rf5 {[%emt 0:00:05]} Rxe4 {[%emt 0:00:03]} 0-1

[Event "Djerba Festival Blitz 2025"]
[Site "Djerba"]
[Date "2025.02.21"]
[Round "1.25"]
[White "Achour, Mohamed Anis"]
[Black "Mallah, Mohamed Khalil"]
[Result "1-0"]
[ECO "A48"]
[WhiteElo "2066"]
[BlackElo "1499"]
[PlyCount "61"]
[EventDate "2025.02.15"]
[EventType "swiss"]
[EventCountry "TUN"]
[TimeControl "180+3"]

1. d4 {[%emt 0:00:04]} Nf6 {[%emt 0:00:03]} 2. Bf4 {[%emt 0:00:02]} g6 {[%emt 0:00:04]} 3. Nf3 {[%emt 0:00:02]} Bg7 {[%emt 0:00:02]} 4. e3 {[%emt 0:00:02]} d6 {[%emt 0:00:02]} 5. h3 {[%emt 0:00:03]} O-O {[%emt 0:00:10]} 6. Be2 {[%emt 0:00:02]} Nbd7 {[%emt 0:00:06]} 7. O-O {[%emt 0:00:05]} Re8 {[%emt 0:00:03]} 8. c3 {[%emt 0:00:03]} e5 {[%emt 0:00:17]} 9. dxe5 {[%emt 0:00:02]} dxe5 {[%emt 0:00:02]} 10. Nxe5 {[%emt 0:00:04]} Nxe5 {[%emt 0:00:17]} 11. Qxd8 {[%emt 0:00:05]} Rxd8 {[%emt 0:00:02]} 12. Bxe5 {[%emt 0:00:03]} c6 {[%emt 0:00:02]} 13. Rd1 {[%emt 0:00:18]} Bf5 {[%emt 0:00:02]} 14. Na3 {[%emt 0:00:07]} b5 {[%emt 0:00:05]} 15. Bf3 {[%emt 0:00:05]} Rxd1+ {[%emt 0:00:40]} 16. Rxd1 {[%emt 0:00:02]} Be4 {[%emt 0:00:02]} 17. Bxe4 {[%emt 0:00:18]} Nxe4 {[%emt 0:00:03]} 18. Bxg7 {[%emt 0:00:04]} Kxg7 {[%emt 0:00:03]} 19. Rd7 {[%emt 0:00:05]} a5 {[%emt 0:00:10]} 20. f3 {[%emt 0:02:27]} Nf6 {[%emt 0:00:07]} 21. Rd6 {[%emt 0:00:00]} b4 {[%emt 0:00:03]} 22. Nb1 {[%emt 0:00:00]} c5 {[%emt 0:00:29]} 23. c4 {[%emt 0:00:00]} a4 {[%emt 0:00:33]} 24. Nd2 {[%emt 0:00:00]} h5 {[%emt 0:00:17]} 25. e4 {[%emt 0:00:00]} Re8 {[%emt 0:00:25]} 26. h4 {[%emt 0:00:00]} Kf8 {[%emt 0:00:03]} 27. Kf2 {[%emt 0:00:00]} Ke7 {[%emt 0:00:12]} 28. Rc6 {[%emt 0:00:00]} Rd8 {[%emt 0:00:00]} 29. Ke2 {[%emt 0:00:00]} Nd7 {[%emt 0:00:01]} 30. f4 {[%emt 0:00:00]} Rh8 {[%emt 0:00:08]} 31. Kd3 {[%emt 0:00:33]} 1-0

[Event "Djerba Festival Blitz 2025"]
[Site "Djerba"]
[Date "2025.02.21"]
[Round "1.26"]
[White "Ben Mbarek, Mohamed"]
[Black "Kaabi, Iheb"]
[Result "1-0"]
[ECO "A08"]
[WhiteElo "1570"]
[BlackElo "1810"]
[PlyCount "50"]
[EventDate "2025.02.15"]
[EventType "swiss"]
[EventCountry "TUN"]
[TimeControl "180+3"]

1. Nf3 {[%emt 0:00:04]} Nf6 {[%emt 0:00:02]} 2. g3 {[%emt 0:00:02]} g6 {[%emt 0:00:02]} 3. Bg2 {[%emt 0:00:02]} Bg7 {[%emt 0:00:03]} 4. O-O {[%emt 0:00:03]} O-O {[%emt 0:00:02]} 5. d3 {[%emt 0:00:02]} d5 {[%emt 0:00:02]} 6. Re1 {[%emt 0:00:04]} c5 {[%emt 0:00:05]} 7. Nbd2 {[%emt 0:00:02]} Nc6 {[%emt 0:00:01]} 8. e4 {[%emt 0:00:03]} d4 {[%emt 0:00:06]} 9. a4 {[%emt 0:00:04]} Bg4 {[%emt 0:00:04]} 10. h3 {[%emt 0:00:07]} Be6 {[%emt 0:00:03]} 11. Ng5 {[%emt 0:00:15]} Bd7 {[%emt 0:00:05]} 12. Nc4 {[%emt 0:00:05]} h6 {[%emt 0:00:05]} 13. e5 {[%emt 0:00:16]} hxg5 {[%emt 0:00:22]} 14. exf6 {[%emt 0:00:03]} Bxf6 {[%emt 0:00:02]} 15. Bd2 {[%emt 0:00:57]} Kg7 {[%emt 0:00:08]} 16. a5 {[%emt 0:00:33]} Rh8 {[%emt 0:00:04]} 17. Kh2 {[%emt 0:00:29]} Bxh3 {[%emt 0:00:22]} 18. Bxh3 {[%emt 0:00:06]} Qd7 {[%emt 0:00:03]} 19. g4 {[%emt 0:00:10]} Qc7+ {[%emt 0:00:25]} 20. Kg2 {[%emt 0:00:12]} Rxh3 {[%emt 0:00:03]} 21. Kxh3 {[%emt 0:00:13]} Rh8+ {[%emt 0:00:02]} 22. Kg2 {[%emt 0:00:03]} Qh2+ {[%emt 0:00:03]} 23. Kf1 {[%emt 0:00:04]} Qh3+ {[%emt 0:00:08]} 24. Ke2 {[%emt 0:00:03]} Qxg4+ {[%emt 0:00:03]} 25. f3 {[%emt 0:00:06]} Qg2# {[%emt 0:00:04]} 1-0